lending/lending_fUSD_20240131
["ID","MTS","AMOUNT","RATE_DAILY","PERIOD"]
[313089562,1706736668580,-500.0,0.00041095,5]
[313089563,1706736668589,-500.0,0.00041095,5]
[313089564,1706736668599,-500.0,0.00041095,5]
[313089565,1706736668608,-500.0,0.00041095,5]
[313089566,1706736668618,-500.0,0.00041095,5]
[313089567,1706736668627,-500.0,0.00041095,5]
[313089568,1706736668636,-500.0,0.00041095,5]
[313089569,1706736668646,-500.0,0.00041095,5]
[313089570,1706736668656,-1208.58,0.00041095,5]
[313089571,1706736668666,-500.0,0.00041095,5]
[313089572,1706736668676,-500.0,0.00041095,5]
[313089573,1706736668686,-500.0,0.00041095,5]
[313089574,1706736668695,-500.0,0.00041095,5]
[313089575,1706736668705,-500.0,0.00041095,5]
[313089576,1706736668715,-471.0923199,0.00041095,5]
[313089577,1706736668725,-1000.0,0.00041095,21]
[313089578,1706736668735,-500.0,0.00041095,5]
[313089579,1706736668744,-500.0,0.00041095,5]
[313089580,1706736668754,-500.0,0.00041095,5]
[313089581,1706736668764,-500.0,0.00041095,2]
[313089582,1706736668777,-500.0,0.00041095,5]
[313089583,1706736668794,-500.0,0.00041095,5]
[313089584,1706736668804,-500.0,0.00041095,5]
[313089585,1706736668814,-583.31,0.00041095,5]
[313089586,1706736668824,-500.0,0.00041095,5]
[313089587,1706736668833,-500.0,0.00041095,5]
[313089588,1706736668843,-1528.21,0.00041095,5]
[313089589,1706736668854,-515.39,0.00041095,5]
[313089590,1706736668863,-500.0,0.00041095,5]
[313089591,1706736668874,-500.0,0.00041095,5]
[313089592,1706736668884,-680.82,0.00041095,5]
[313089593,1706736668894,-500.0,0.00041095,5]
[313089594,1706736668906,-585.71,0.00041095,2]
[313089595,1706736668916,-500.0,0.00041095,5]
[313089596,1706736668927,-500.0,0.00041095,5]
[313089597,1706736668937,-573.78,0.00041095,5]
[313089598,1706736668948,-500.0,0.00041095,5]
[313089599,1706736668959,-3275.23,0.00041095,5]
[313089600,1706736668970,-500.0,0.00041095,5]
[313089601,1706736668980,-500.0,0.00041095,5]
[313089602,1706736668991,-500.0,0.00041095,5]
[313089603,1706736669002,-500.0,0.00041095,5]
[313089604,1706736669013,-1261.55,0.00041095,5]
[313089605,1706736669024,-427.15143247,0.00041095,5]
[313089606,1706736669042,-500.0,0.00041095,5]
[313089607,1706736669053,-1056.79,0.00041095,5]
[313089608,1706736669064,-794.7,0.00041095,5]
[313089609,1706736669075,-5284.67,0.00041095,5]
[313089610,1706736669086,-500.0,0.00041095,5]
[313089611,1706736669098,-672.7,0.00041095,5]
[313089612,1706736669110,-1126.15,0.00041095,5]
[313089613,1706736669120,-500.0,0.00041095,5]
[313089614,1706736669130,-1000.0,0.00041095,7]
[313089615,1706736669140,-500.0,0.00041095,5]
[313089616,1706736669150,-584.9,0.00041095,5]
[313089617,1706736669160,-651.12,0.00041095,5]
[313089618,1706736669170,-507.27,0.00041095,5]
[313089619,1706736669180,-500.0,0.00041095,5]
[313089620,1706736669189,-1698.73,0.00041095,5]
[313089621,1706736669200,-500.0,0.00041095,5]
[313089622,1706736669210,-608.75,0.00041095,5]
[313089623,1706736669219,-500.0,0.00041095,5]
[313089624,1706736669231,-605.81,0.00041095,5]
[313089625,1706736669241,-678.92,0.00041095,5]
[313089626,1706736669250,-977.32,0.00041095,5]
[313089627,1706736669261,-1687.18,0.00041095,5]
[313089628,1706736669271,-1315.53,0.00041095,5]
[313089629,1706736669281,-500.0,0.00041095,5]
[313089630,1706736669296,-500.0,0.00041095,5]
[313089631,1706736669308,-500.0,0.00041095,5]
[313089632,1706736669317,-500.0,0.00041095,5]
[313089633,1706736669327,-1511.96,0.00041095,5]
[313089634,1706736669336,-500.0,0.00041095,5]
[313089635,1706736669345,-1466.44,0.00041095,5]
[313089636,1706736669355,-422.20699054,0.00041095,5]
[313089637,1706736669365,-500.0,0.00041095,5]
[313089638,1706736669375,-1262.64,0.00041095,5]
[313089639,1706736669384,-1686.6,0.00041095,5]
[313089640,1706736669395,-1759.87,0.00041095,5]
[313089641,1706736669405,-500.0,0.00041095,5]
[313089642,1706736669415,-796.91,0.00041095,5]
[313089643,1706736669425,-500.0,0.00041095,5]
[313089644,1706736669435,-500.0,0.00041095,5]
[313089645,1706736669445,-500.0,0.00041095,10]
[313089646,1706736669455,-500.0,0.00041095,5]
[313089647,1706736669465,-529.4,0.00041095,5]
[313089648,1706736669475,-662.47,0.00041095,5]
[313089649,1706736669484,-3011.45,0.00041095,5]
[313089650,1706736669493,-902.1,0.00041095,5]
[313089651,1706736669502,-500.0,0.00041095,5]
[313089652,1706736669512,-812.18,0.00041095,5]
[313089653,1706736669522,-500.0,0.00041095,5]
[313089654,1706736669537,-500.0,0.00041095,5]
[313089655,1706736669547,-742.82,0.00041095,5]
[313089656,1706736669557,-1136.51,0.00041095,5]
[313089657,1706736669567,-928.46,0.00041095,5]
[313089658,1706736669577,-638.32,0.00041095,5]
[313089659,1706736669587,-500.0,0.00041095,5]
[313089660,1706736669597,-914.58,0.00041095,5]
[313089661,1706736669607,-682.55,0.00041095,5]
[313089662,1706736669617,-1957.6,0.00041095,5]
[313089663,1706736669628,-500.0,0.00041095,5]
[313089664,1706736669638,-1785.32,0.00041095,5]
[313089665,1706736669648,-500.0,0.00041095,5]
[313089666,1706736669658,-729.97,0.00041095,5]
[313089667,1706736669668,-652.82,0.00041095,5]
[313089668,1706736669677,-963.87,0.00041095,5]
[313089669,1706736669687,-500.0,0.00041095,5]
[313089670,1706736669696,-500.0,0.00041095,5]
[313089671,1706736669706,-587.33,0.00041095,5]
[313089672,1706736669716,-540.51,0.00041095,5]
[313089673,1706736669726,-1505.83,0.00041095,5]
[313089674,1706736669735,-1344.23,0.00041095,5]
[313089675,1706736669744,-715.02,0.00041095,5]
[313089676,1706736669754,-823.24,0.00041095,5]
[313089677,1706736669763,-3815.84,0.00041095,5]
[313089678,1706736669773,-500.0,0.00041095,5]
[313089679,1706736669789,-500.0,0.00041095,5]
[313089680,1706736669799,-533.75,0.00041095,5]
[313089681,1706736669810,-500.0,0.00041095,5]
[313089682,1706736669820,-601.94,0.00041095,5]
[313089683,1706736669830,-2237.3,0.00041095,5]
[313089684,1706736669840,-789.41,0.00041095,5]
[313089685,1706736669851,-500.0,0.00041095,5]
[313089686,1706736669862,-651.31,0.00041095,5]
[313089687,1706736669873,-1657.29,0.00041095,5]
[313089688,1706736669884,-719.21,0.00041095,5]
[313089689,1706736670049,-500.0,0.00041095,5]
[313089690,1706736670060,-812.12,0.00041095,5]
[313089691,1706736670069,-1780.38,0.00041095,5]
[313089692,1706736670079,-500.0,0.00041095,5]
[313089693,1706736670093,-500.0,0.00041095,5]
[313089694,1706736670104,-500.0,0.00041095,5]
[313089695,1706736670114,-652.83,0.00041095,5]
[313089696,1706736670124,-500.0,0.00041095,5]
[313089697,1706736670133,-441.22036957,0.00041095,5]
[313089698,1706736670143,-791.3,0.00041095,5]
[313089699,1706736670153,-849.04,0.00041095,5]
[313089700,1706736670162,-500.0,0.00041095,5]
[313089701,1706736670172,-1524.13,0.00041095,5]
[313089702,1706736670181,-2731.97,0.00041095,5]
[313089703,1706736670190,-1537.1,0.00041095,5]
[313089704,1706736670202,-571.63,0.00041095,5]
[313089705,1706736670212,-500.0,0.00041095,5]
[313089706,1706736670222,-640.29,0.00041095,5]
[313089707,1706736670233,-500.0,0.00041095,5]
[313089708,1706736670242,-500.0,0.00041095,5]
[313089709,1706736670251,-700.08,0.00041095,5]
[313089710,1706736670261,-20006.34,0.00041095,5]
[313089711,1706736670270,-726.47,0.00041095,5]
[313089712,1706736670280,-510.24,0.00041095,5]
[313089713,1706736670294,-500.0,0.00041095,5]
[313089714,1706736670304,-948.65,0.00041095,5]
[313089715,1706736670315,-800.64,0.00041095,5]
[313089716,1706736670326,-581.17,0.00041095,5]
[313089717,1706736670335,-500.0,0.00041095,5]
[313089718,1706736670346,-500.0,0.00041095,5]
[313089719,1706736670356,-500.0,0.00041095,5]
[313089720,1706736670365,-500.0,0.00041095,5]
[313089721,1706736670374,-550.76834544,0.00041095,5]
[313089722,1706736670384,-567.51,0.00041095,5]
[313089723,1706736670393,-500.0,0.00041095,5]
[313089724,1706736670403,-1484.95,0.00041095,5]
[313089725,1706736670412,-500.0,0.00041095,5]
[313089726,1706736670422,-1619.55,0.00041095,5]
[313089727,1706736670431,-500.0,0.00041095,5]
[313089728,1706736670441,-604.26,0.00041095,5]
[313089729,1706736670452,-791.85,0.00041095,5]
[313089730,1706736670462,-679.29,0.00041095,2]
[313089731,1706736670471,-500.0,0.00041095,5]
[313089732,1706736670481,-862.32,0.00041095,5]
[313089733,1706736670491,-3247.43,0.00041095,5]
[313089734,1706736670501,-2628.35,0.00041095,5]
[313089735,1706736670510,-1000.23,0.00041095,5]
[313089736,1706736670520,-500.0,0.00041095,5]
[313089737,1706736670530,-500.0,0.00041095,5]
[313089738,1706736670543,-1155.57,0.00041095,5]
[313089739,1706736670553,-678.92,0.00041095,5]
[313089740,1706736670562,-500.0,0.00041095,5]
[313089741,1706736670573,-500.0,0.00041095,5]
[313089742,1706736670584,-1333.1,0.00041095,5]
[313089743,1706736670594,-1036.02,0.00041095,5]
[313089744,1706736670604,-500.0,0.00041095,5]
[313089745,1706736670614,-509.62,0.00041095,5]
[313089746,1706736670624,-500.0,0.00041095,5]
[313089747,1706736670633,-500.0,0.00041095,5]
[313089748,1706736670643,-1000.0,0.00041096,4]
[313089749,1706736670653,-151.0,0.00041096,14]
[313089750,1706736670664,-151.0,0.00041096,14]
[313089751,1706736670673,-151.0,0.00041096,14]
[313089752,1706736670683,-151.0,0.00041096,14]
[313089753,1706736670693,-151.0,0.00041096,14]
[313089754,1706736670702,-151.0,0.00041096,14]
[313089755,1706736670711,-151.0,0.00041096,14]
[313089756,1706736670720,-151.0,0.00041096,14]
[313089757,1706736670729,-151.0,0.00041096,14]
[313089758,1706736670738,-225.587835,0.00041096,14]
[313089759,1706736670748,-151.0,0.00041096,7]
[313089760,1706736670757,-151.0,0.00041096,7]
[313089761,1706736670767,-151.0,0.00041096,7]
[313089762,1706736670776,-151.0,0.00041096,7]
[313089763,1706736670787,-151.0,0.00041096,7]
[313089764,1706736670796,-151.0,0.00041096,7]
[313089765,1706736670806,-151.0,0.00041096,7]
[313089766,1706736670815,-151.0,0.00041096,7]
[313089767,1706736670825,-151.0,0.00041096,7]
[313089768,1706736670835,-151.0,0.00041096,7]
[313089769,1706736670845,-151.0,0.00041096,7]
[313089770,1706736670855,-151.0,0.00041096,7]
[313089771,1706736670865,-151.0,0.00041096,7]
[313089772,1706736670874,-151.0,0.00041096,7]
[313089773,1706736670884,-151.0,0.00041096,7]
[313089774,1706736670893,-151.0,0.00041096,7]
[313089775,1706736670902,-156.728962,0.00041096,7]
[313089776,1706736670912,-151.0,0.00041096,14]
[313089777,1706736670922,-151.0,0.00041096,14]
[313089778,1706736670932,-195.327471,0.00041096,14]
[313089779,1706736670942,-151.0,0.00041096,14]
[313089780,1706736670952,-151.0,0.00041096,14]
[313089781,1706736670962,-151.0,0.00041096,14]
[313089782,1706736670972,-151.0,0.00041096,14]
[313089783,1706736670982,-151.0,0.00041096,14]
[313089784,1706736670992,-244.0,0.00041096,14]
[313089785,1706736671002,-263.101891,0.00041096,14]
[313089786,1706736671012,-263.101891,0.00041096,14]
[313089787,1706736671021,-263.101891,0.00041096,14]
[313089788,1706736671031,-263.101891,0.00041096,14]
[313089789,1706736671046,-263.101891,0.00041096,14]
[313089790,1706736671055,-263.101891,0.00041096,14]
[313089791,1706736671064,-263.101891,0.00041096,14]
[313089792,1706736671088,-263.101891,0.00041096,14]
[313089793,1706736671121,-263.101891,0.00041096,14]
[313089794,1706736671132,-263.101891,0.00041096,14]
[313089795,1706736671142,-263.101891,0.00041096,14]
[313089796,1706736671152,-263.101891,0.00041096,14]
[313089797,1706736671162,-263.101891,0.00041096,14]
[313089798,1706736671172,-263.101891,0.00041096,14]
[313089799,1706736671182,-263.101891,0.00041096,14]
[313089800,1706736671191,-263.101891,0.00041096,14]
[313089801,1706736671204,-263.101891,0.00041096,14]
[313089802,1706736671213,-263.101891,0.00041096,14]
[313089803,1706736671224,-263.101891,0.00041096,14]
[313089804,1706736671236,-263.101893,0.00041096,14]
[313089805,1706736671245,-160.19,0.00041096,2]
[313089806,1706736671254,-171.06,0.00041096,2]
[313089807,1706736671263,-151.0,0.00041096,7]
[313089808,1706736671272,-151.0,0.00041096,7]
[313089809,1706736671281,-151.0,0.00041096,7]
[313089810,1706736671298,-151.0,0.00041096,7]
[313089811,1706736671307,-151.0,0.00041096,7]
[313089812,1706736671317,-151.0,0.00041096,7]
[313089813,1706736671326,-151.0,0.00041096,7]
[313089814,1706736671335,-151.0,0.00041096,7]
[313089815,1706736671345,-151.0,0.00041096,7]
[313089816,1706736671353,-151.0,0.00041096,7]
[313089817,1706736671362,-151.0,0.00041096,7]
[313089818,1706736671371,-151.0,0.00041096,7]
[313089819,1706736671380,-151.0,0.00041096,7]
[313089820,1706736671389,-151.0,0.00041096,7]
[313089821,1706736671399,-188.270785,0.00041096,7]
[313089822,1706736671408,-181.0,0.00041096,2]
[313089823,1706736671417,-29239.52,0.00041096,2]
[313089824,1706736671426,-150.0,0.00041096,2]
[313089825,1706736671436,-151.0,0.00041096,14]
[313089826,1706736671446,-160.810012,0.00041096,14]
[313089827,1706736671456,-151.0,0.00041096,14]
[313089828,1706736671466,-151.0,0.00041096,14]
[313089829,1706736671475,-209.45989,0.00041096,14]
[313089830,1706736671485,-3891.0,0.00041096,30]
[313089831,1706736671494,-150.98,0.00041096,2]
[313089832,1706736671507,-1011.81,0.000411,2]
[313089833,1706736671517,-1011.81,0.000411,2]
[313089834,1706736671527,-1011.81,0.000411,2]
[313089835,1706736671539,-1011.81,0.000411,2]
[313089836,1706736671549,-1011.81,0.000411,2]
[313089837,1706736671558,-1011.81,0.000411,2]
[313089838,1706736671568,-1011.81,0.000411,2]
[313089839,1706736671579,-1011.81,0.000411,2]
[313089840,1706736671588,-1011.81,0.000411,2]
[313089841,1706736671598,-1011.81,0.000411,2]
[313089842,1706736671608,-914.0,0.00041118,7]
[313089843,1706736671617,-535.0,0.00041118,7]
[313089844,1706736671627,-547.0,0.00041118,7]
[313089845,1706736671637,-173.101964,0.00041127,30]
[313089846,1706736671646,-16304.30274,0.00041127,30]
[313089847,1706736671655,-487.200419,0.00041127,30]
[313089848,1706736671664,-6614.864928,0.00041127,30]
[313089849,1706736671673,-172.459649,0.00041127,30]
[313089850,1706736671682,-2002.88,0.0004114,2]
[313089851,1706736671691,-150.0,0.00041155,30]
[313089852,1706736671701,-151.0201,0.00041198,18]
[313089853,1706736671710,-154.03,0.000412,4]
[313089854,1706736671719,-154.03,0.000412,4]
[313089855,1706736671729,-154.03,0.000412,4]
[313089856,1706736671739,-154.03,0.000412,4]
[313089857,1706736671749,-154.03,0.000412,4]
[313089858,1706736671759,-154.03,0.000412,4]
[313089859,1706736671770,-2919.82,0.000412,4]
[313089860,1706736671780,-2919.82,0.000412,4]
[313089861,1706736671795,-2919.82,0.000412,4]
[313089862,1706736671805,-2919.82,0.000412,4]
[313089863,1706736671814,-2919.82,0.000412,4]
[313089864,1706736671824,-2919.82,0.000412,4]
[313089865,1706736671834,-2919.82,0.000412,4]
[313089866,1706736671844,-2919.82,0.000412,4]
[313089867,1706736671854,-2919.82,0.000412,4]
[313089868,1706736671864,-2919.82,0.000412,4]
[313089869,1706736671874,-2919.82,0.000412,4]
[313089870,1706736671884,-2919.82,0.000412,4]
[313089871,1706736671894,-2919.82,0.000412,4]
[313089872,1706736671903,-2919.82,0.000412,4]
[313089873,1706736671913,-2919.82,0.000412,4]
[313089874,1706736671923,-2919.82,0.000412,4]
[313089875,1706736671933,-2919.82,0.000412,4]
[313089876,1706736671943,-2919.82,0.000412,4]
[313089877,1706736671954,-2919.82,0.000412,4]
[313089878,1706736671964,-2919.82,0.000412,4]
[313089879,1706736671974,-150.0,0.00041213,30]
[313089880,1706736671983,-207.0,0.0004124,2]
[313089881,1706736671993,-210.0,0.0004124,2]
[313089882,1706736672002,-792.48,0.000413,12]
[313089883,1706736672011,-500.0,0.00041307,14]
[313089884,1706736672021,-749.09410912,0.00041344,13]
[313089885,1706736672030,-749.09410903,0.00041344,13]
[313089886,1706736672046,-749.09410903,0.00041344,13]
[313089887,1706736672056,-749.09410903,0.00041344,13]
[313089888,1706736672065,-749.09410903,0.00041344,13]
[313089889,1706736672074,-749.09410903,0.00041344,13]
[313089890,1706736672083,-150.0,0.00041357,30]
[313089891,1706736672093,-500.0,0.00041369,30]
[313089892,1706736672102,-1000.0,0.0004137,6]
[313089893,1706736672111,-1593.31,0.000414,7]
[313089894,1706736672120,-410.0,0.000414,31]
[313089895,1706736672130,-3906.33131402,0.00041412,5]
[313089896,1706736672139,-150.0,0.00041424,30]
[313089897,1706736672148,-178.652212,0.00041462,30]
[313089898,1706736672158,-914.0,0.00041463,7]
[313089899,1706736672168,-535.0,0.00041463,7]
[313089900,1706736672178,-547.0,0.00041463,7]
[313089901,1706736672187,-151.0201,0.00041498,18]
[313089902,1706736672197,-184.24842456,0.00041522,4]
[313089903,1706736672206,-150.0,0.00041559,30]
[313089904,1706736672215,-1000.0,0.000416,2]
[313089905,1706736672225,-152.0,0.00041621,6]
[313089906,1706736672237,-173.101964,0.00041629,30]
[313089907,1706736672246,-16304.30274,0.00041629,30]
[313089908,1706736672255,-487.200419,0.00041629,30]
[313089909,1706736672264,-6614.864928,0.00041629,30]
[313089910,1706736672274,-156.4652027,0.00041632,12]
[313089911,1706736672284,-1460.59,0.00041643,5]
[313089912,1706736672295,-553.49,0.00041643,5]
[313089913,1706736672304,-500.0,0.00041643,2]
[313089914,1706736672314,-625.93,0.00041643,5]
[313089915,1706736672324,-500.0,0.00041643,5]
[313089916,1706736672458,-184.21492916,0.00041643,5]
[313089917,1706736672467,-500.0,0.00041643,2]
[313089918,1706736672477,-500.0,0.00041643,5]
[313089919,1706736672487,-500.0,0.00041643,5]
[313089920,1706736672496,-500.0,0.00041643,5]
[313089921,1706736672506,-897.14,0.00041643,2]
[313089922,1706736672514,-500.0,0.00041643,5]
[313089923,1706736672524,-1000.0,0.00041643,2]
[313089924,1706736672534,-500.0,0.00041643,2]
[313089925,1706736672545,-500.0,0.00041643,5]
[313089926,1706736672555,-529.61511636,0.00041643,5]
[313089927,1706736672565,-500.0,0.00041643,5]
[313089928,1706736672574,-1000.0,0.00041643,7]
[313089929,1706736672585,-500.0,0.00041643,5]
[313089930,1706736672595,-500.0,0.00041643,5]
[313089931,1706736672604,-500.0,0.00041643,5]
[313089932,1706736672613,-500.0,0.00041643,5]
[313089933,1706736672622,-500.0,0.00041643,5]
[313089934,1706736672631,-1613.63,0.00041643,7]
[313089935,1706736672640,-827.79,0.00041643,2]
[313089936,1706736672650,-1000.0,0.00041643,7]
[313089937,1706736672658,-500.0,0.00041643,5]
[313089938,1706736672667,-500.0,0.00041643,5]
[313089939,1706736672676,-518.83,0.00041643,5]
[313089940,1706736672686,-667.59,0.00041643,5]
[313089941,1706736672695,-500.0,0.00041643,5]
[313089942,1706736672704,-500.0,0.00041643,5]
[313089943,1706736672714,-851.16,0.00041643,5]
[313089944,1706736672723,-500.0,0.00041643,5]
[313089945,1706736672732,-500.0,0.00041643,2]
[313089946,1706736672742,-500.0,0.00041643,5]
[313089947,1706736672751,-500.0,0.00041643,5]
[313089948,1706736672761,-500.0,0.00041643,5]
[313089949,1706736672770,-500.0,0.00041643,5]
[313089950,1706736672780,-500.0,0.00041643,5]
[313089951,1706736672791,-500.0,0.00041643,5]
[313089952,1706736672800,-500.0,0.00041643,5]
[313089953,1706736672809,-500.0,0.00041643,5]
[313089954,1706736672818,-500.0,0.00041643,5]
[313089955,1706736672827,-500.0,0.00041643,5]
[313089956,1706736672837,-500.0,0.00041643,5]
[313089957,1706736672847,-500.0,0.00041643,5]
[313089958,1706736672857,-500.0,0.00041643,5]
[313089959,1706736672866,-500.0,0.00041643,5]
[313089960,1706736672875,-1208.58,0.00041643,5]
[313089961,1706736672885,-500.0,0.00041643,5]
[313089962,1706736672895,-500.0,0.00041643,5]
[313089963,1706736672904,-1000.0,0.00041643,21]
[313089964,1706736672915,-500.0,0.00041643,5]
[313089965,1706736672926,-500.0,0.00041643,5]
[313089966,1706736672936,-500.0,0.00041643,5]
[313089967,1706736672946,-545.79535344,0.00041643,2]
[313089968,1706736672957,-500.0,0.00041643,5]
[313089969,1706736672967,-500.0,0.00041643,5]
[313089970,1706736672977,-500.0,0.00041643,5]
[313089971,1706736672987,-583.31,0.00041643,5]
[313089972,1706736672997,-500.0,0.00041643,5]
[313089973,1706736673007,-500.0,0.00041643,5]
[313089974,1706736673016,-1528.21,0.00041643,5]
[313089975,1706736673026,-515.39,0.00041643,5]
[313089976,1706736673039,-500.0,0.00041643,5]
[313089977,1706736673050,-500.0,0.00041643,5]
[313089978,1706736673060,-680.82,0.00041643,5]
[313089979,1706736673072,-500.0,0.00041643,5]
[313089980,1706736673082,-585.71,0.00041643,2]
[313089981,1706736673092,-500.0,0.00041643,5]
[313089982,1706736673101,-500.0,0.00041643,5]
[313089983,1706736673111,-573.78,0.00041643,5]
[313089984,1706736673121,-500.0,0.00041643,5]
[313089985,1706736673130,-3275.23,0.00041643,5]
[313089986,1706736673139,-500.0,0.00041643,5]
[313089987,1706736673149,-500.0,0.00041643,5]
[313089988,1706736673159,-500.0,0.00041643,5]
[313089989,1706736673168,-500.0,0.00041643,5]
[313089990,1706736673177,-1261.55,0.00041643,5]
[313089991,1706736673187,-500.0,0.00041643,5]
[313089992,1706736673197,-1056.79,0.00041643,5]
[313089993,1706736673206,-794.7,0.00041643,5]
[313089994,1706736673216,-5284.67,0.00041643,5]
[313089995,1706736673226,-500.0,0.00041643,5]
[313089996,1706736673238,-672.7,0.00041643,5]
[313089997,1706736673248,-1126.15,0.00041643,5]
[313089998,1706736673257,-500.0,0.00041643,5]
[313089999,1706736673268,-1000.0,0.00041643,7]
[313090000,1706736673278,-500.0,0.00041643,5]
[313090001,1706736673290,-584.9,0.00041643,5]
[313090002,1706736673300,-651.12,0.00041643,5]
[313090003,1706736673309,-507.27,0.00041643,5]
[313090004,1706736673319,-500.0,0.00041643,5]
[313090005,1706736673330,-1698.73,0.00041643,5]
[313090006,1706736673339,-500.0,0.00041643,5]
[313090007,1706736673348,-608.75,0.00041643,5]
[313090008,1706736673358,-500.0,0.00041643,5]
[313090009,1706736673367,-605.81,0.00041643,5]
[313090010,1706736673376,-678.92,0.00041643,5]
[313090011,1706736673386,-977.32,0.00041643,5]
[313090012,1706736673395,-1687.18,0.00041643,5]
[313090013,1706736673406,-1315.53,0.00041643,5]
[313090014,1706736673415,-500.0,0.00041643,5]
[313090015,1706736673425,-500.0,0.00041643,5]
[313090016,1706736673435,-500.0,0.00041643,5]
[313090017,1706736673445,-500.0,0.00041643,5]
[313090018,1706736673455,-1511.96,0.00041643,5]
[313090019,1706736673465,-500.0,0.00041643,5]
[313090020,1706736673475,-1466.44,0.00041643,5]
[313090021,1706736673485,-500.0,0.00041643,5]
[313090022,1706736673495,-1262.64,0.00041643,5]
[313090023,1706736673505,-1686.6,0.00041643,5]
[313090024,1706736673515,-1759.87,0.00041643,5]
[313090025,1706736673524,-500.0,0.00041643,5]
[313090026,1706736673534,-796.91,0.00041643,5]
[313090027,1706736673551,-500.0,0.00041643,5]
[313090028,1706736673561,-500.0,0.00041643,5]
[313090029,1706736673571,-500.0,0.00041643,10]
[313090030,1706736673582,-500.0,0.00041643,5]
[313090031,1706736673594,-529.4,0.00041643,5]
[313090032,1706736673606,-662.47,0.00041643,5]
[313090033,1706736673615,-3011.45,0.00041643,5]
[313090034,1706736673625,-902.1,0.00041643,5]
[313090035,1706736673634,-500.0,0.00041643,5]
[313090036,1706736673644,-812.18,0.00041643,5]
[313090037,1706736673655,-500.0,0.00041643,5]
[313090038,1706736673664,-438.31174734,0.00041643,5]
[313090039,1706736673674,-742.82,0.00041643,5]
[313090040,1706736673684,-1136.51,0.00041643,5]
[313090041,1706736673695,-928.46,0.00041643,5]
[313090042,1706736673705,-638.32,0.00041643,5]
[313090043,1706736673715,-914.58,0.00041643,5]
[313090044,1706736673724,-500.0,0.00041643,5]
[313090045,1706736673734,-682.55,0.00041643,5]
[313090046,1706736673744,-1957.6,0.00041643,5]
[313090047,1706736673754,-500.0,0.00041643,5]
[313090048,1706736673763,-1785.32,0.00041643,5]
[313090049,1706736673773,-500.0,0.00041643,5]
[313090050,1706736673791,-729.97,0.00041643,5]
[313090051,1706736673802,-652.82,0.00041643,5]
[313090052,1706736673813,-963.87,0.00041643,5]
[313090053,1706736673823,-500.0,0.00041643,5]
[313090054,1706736673833,-500.0,0.00041643,5]
[313090055,1706736673847,-587.33,0.00041643,5]
[313090056,1706736673859,-540.51,0.00041643,5]
[313090057,1706736673869,-1505.83,0.00041643,5]
[313090058,1706736673879,-1344.23,0.00041643,5]
[313090059,1706736673889,-715.02,0.00041643,5]
[313090060,1706736673898,-823.24,0.00041643,5]
[313090061,1706736673908,-3815.84,0.00041643,5]